[Event "7th Porticcio Open 2022"]
[Site "Porticcio"]
[Date "2022.07.05"]
[Round "5.3"]
[White "Clarke, Brandon G I"]
[Black "Droin, Augustin"]
[Result "1-0"]
[ECO "B42"]
[WhiteElo "2486"]
[BlackElo "2391"]
[Annotator "TA"]
[PlyCount "141"]
[EventDate "2022.07.02"]
[EventType "swiss"]
[EventCountry "FRA"]
[SourceTitle "playchess.com"]
[Source "ChessBase"]
[SourceQuality "1"]
[TimeControl "5400+30"]

{[%evp 12,141,40,31,33,40,38,18,42,22,49,39,50,-18,45,34,31,28,20,14,47,24,70,71,79,86,87,75,69,76,106,62,204,187,194,154,200,209,196,183,192,182,187,121,123,124,112,135,127,108,112,102,132,108,135,122,124,116,127,121,126,116,119,120,99,61,27,29,156,166,203,198,205,205,195,189,185,186,236,219,210,191,195,175,206,196,193,205,198,214,206,191,186,125,228,232,602,566,573,588,564,0,102,0,587,580,583,57,66,0,587,579,564,560,718,453,436,411,366,358,607,600,689,682,636,607,656,723,631,642,610,597]} 1. e4 {[%emt 0:00:03]} c5 {[%emt 0:00:17]} 2. Nf3 {[%emt 0:00:07]} e6 {[%emt 0:00:03]} 3. d4 {[%emt 0:00:31]} cxd4 {[%emt 0:00:04]} 4. Nxd4 {[%emt 0:00:06]} a6 {[%emt 0:00:02]} 5. Bd3 {[%emt 0:00:35]} Bc5 {[%emt 0:00:05]} 6. Nb3 {[%emt 0:00:05]} Ba7 {[%emt 0:00:03]} 7. Qe2 {[%emt 0:03:23]} Ne7 {[%emt 0:00:25] B42: Sicilian: Kan Variation: 5 Bd3.} 8. Be3 {[%emt 0:00:10]} O-O {[%emt 0:02:01]} 9. O-O {[%emt 0:01:04] 9.a4 is setting a new trend.} Nbc6 {[%emt 0:01:01] [#] The position is equal.} 10. f4 $146 {[%emt 0:02:14]} ({Predecessor:} 10. Bxa7 Rxa7 11. c4 d5 12. N1d2 dxc4 13. Nxc4 b5 14. Ne3 Rd7 15. Rfd1 Qb6 16. Rac1 Ng6 17. g3 {½-½ (62) Mekhitarian,K (2569)-Kovalenko,I (2674) Chess.com INT 2022}) 10... f5 {[%emt 0:07:01]} 11. Bxa7 {[%emt 0:04:51]} Rxa7 {[%emt 0:00:50]} 12. e5 {[%emt 0:00:33]} (12. N1d2 $14) 12... d6 {[%emt 0:02:37]} (12... g5 $11) 13. exd6 $14 {[%emt 0:02:54]} Qxd6 {[%emt 0:02:32]} 14. N1d2 {[%emt 0:00:40][%cal Bb1d2,Bd2c4,Bc4b6][%mdl 32]} Ng6 {[%emt 0:01:35]} 15. Qe3 {[%emt 0:05:13]} e5 {[%emt 0:08:37][%cal Rg6f4]} 16. Nc4 {[%emt 0:00:48]} Qf6 {[%emt 0:00:18]} (16... Qb8 $1 $11 {was preferrable.}) 17. fxe5 {[%emt 0:03:33]} Ngxe5 {[%emt 0:00:14]} 18. Nb6 {[%emt 0:18:36]} f4 {[%emt 0:10:29]} 19. Qe4 {[%emt 0:17:44]} Nxd3 {[%emt 0:01:03]} 20. cxd3 {[%emt 0:00:47]} Ne7 {[%emt 0:21:27]} 21. Qb4 {[%emt 0:08:32]} Qg5 {[%emt 0:11:32]} ({Better is} 21... a5 $14 22. Nxa5 Bg4) 22. Rae1 $1 $18 {[%emt 0:03:11]} Bh3 {[%emt 0:02:44][%csl Gh3][%cal Rg5g2]} 23. Rf2 {[%emt 0:00:40]} Ng6 {[%emt 0:01:21]} 24. Qc4+ {[%emt 0:08:43]} Kh8 {[%emt 0:00:19]} 25. Qc5 {[%emt 0:00:07]} Qxc5 {[%emt 0:00:33]} 26. Nxc5 {[%emt 0:00:01] Pair of Knights!} Bf5 {[%emt 0:00:22]} 27. Rfe2 {[%emt 0:00:59]} (27. a4 $18) 27... Kg8 $16 {[%emt 0:02:01]} 28. Re8 {[%emt 0:01:07]} Rxe8 {[%emt 0:05:47]} 29. Rxe8+ {[%emt 0:00:02]} Kf7 {[%emt 0:00:04]} 30. Rb8 {[%emt 0:01:02] 0x0.000bd0ff00a3dp-1022s more active pieces.} Ne5 {[%emt 0:00:39]} 31. Rd8 $1 {[%emt 0:07:07]} Nc6 {[%emt 0:01:20]} 32. Rd5 {[%emt 0:02:30]} g6 {[%emt 0:01:00]} 33. a3 {[%emt 0:00:39]} Ne7 {[%emt 0:01:39]} 34. Rd4 {[%emt 0:00:21]} g5 {[%emt 0:01:04]} 35. h4 {[%emt 0:00:23]} h6 {[%emt 0:00:21]} 36. Rd6 {[%emt 0:00:46]} Kg7 {[%emt 0:02:03]} 37. hxg5 {[%emt 0:02:12]} hxg5 {[%emt 0:00:04]} 38. Ne6+ {[%emt 0:00:07]} Bxe6 {[%emt 0:01:00]} 39. Rxe6 $14 {[%emt 0:00:02][%mdl 4096] Endgame KRN-KRN} Nc6 {[%emt 0:00:43] [#]} (39... Nf5 $11) 40. b4 $1 $16 {[%emt 0:01:16][%cal Bb2b4,Bb4b5][%mdl 32]} a5 {[%emt 0:01:20]} 41. b5 {[%emt 0:00:11]} Nd4 {[%emt 0:00:20]} 42. Re5 {[%emt 0:00:19]} a4 {[%emt 0:01:40]} 43. Rxg5+ {[%emt 0:00:15]} Kf6 {[%emt 0:00:06]} 44. Rd5 {[%emt 0:02:12]} Ne6 {[%emt 0:00:27]} (44... Ne2+ {is a better defense.} 45. Kf2 Nc3) 45. Kf2 {[%emt 0:00:59]} Ra5 {[%emt 0:00:12]} 46. Nc4 {[%emt 0:00:38]} Ra8 {[%emt 0:00:02]} 47. b6 {[%emt 0:00:39]} Rg8 {[%emt 0:01:48]} 48. Nd6 {[%emt 0:02:56]} Nd8 {[%emt 0:02:09]} 49. Ne4+ {[%emt 0:00:47]} Ke6 {[%emt 0:00:18]} 50. Ra5 {[%emt 0:00:05]} Nc6 {[%emt 0:00:25]} 51. Rxa4 {[%emt 0:00:08]} Ne5 {[%emt 0:00:03]} 52. Rd4 {[%emt 0:00:55]} (52. d4 $18 Nd7 53. Ra5) 52... Ng4+ {[%emt 0:00:51]} (52... Rc8 $16 53. Ke2 (53. Rd6+ Ke7 $16) 53... Rc2+ 54. Kd1 Rxg2) 53. Kf3 $18 {[%emt 0:00:09]} Ke5 {[%emt 0:00:03]} (53... Kf5 54. Ng3+ (54. Nd6+ Ke5 $16) 54... Ke5 55. Re4+ Kd5) 54. Rd7 {[%emt 0:01:28]} Nh2+ {[%emt 0:00:11]} 55. Kf2 {[%emt 0:00:02]} Ng4+ {[%emt 0:00:04]} 56. Kf3 $2 {[%emt 0:00:02]} (56. Ke2 $18 {and White stays clearly on top.}) 56... Nh2+ $16 {[%emt 0:00:06] [#]} 57. Kf2 $2 {[%emt 0:00:02][%mdl 8192]} (57. Ke2 $1 $16) 57... Ng4+ $18 {[%emt 0:00:19]} 58. Ke2 {[%emt 0:00:02]} Nh2 {[%emt 0:00:42]} 59. Re7+ $2 {[%emt 0:00:34]} (59. Rxb7 $18 Rxg2+ 60. Kd1) 59... Kd4 $14 {[%emt 0:03:57]} 60. Rd7+ $2 {[%emt 0:00:46][%mdl 8192]} (60. Kf2 $14 Ng4+ 61. Kg1) 60... Ke5 $18 {[%emt 0:00:03]} 61. Rxb7 {[%emt 0:03:02] aiming for Re7+.} Rxg2+ {[%emt 0:00:03]} 62. Kd1 {[%emt 0:00:24]} Nf3 {[%emt 0:04:50]} 63. Rf7 {[%emt 0:00:55]} Rg1+ {[%emt 0:00:50]} 64. Kc2 {[%emt 0:00:24]} Nd4+ {[%emt 0:00:11]} 65. Kc3 {[%emt 0:00:32]} Nb5+ $2 {[%emt 0:02:11]} (65... Rc1+ 66. Kb2 Rc2+ 67. Kb1 Rc6) 66. Kb2 {[%emt 0:00:35] White is clearly winning.} Rg2+ {[%emt 0:00:10]} 67. Kb3 {[%emt 0:00:02]} Nd4+ {[%emt 0:00:04]} 68. Kc4 {[%emt 0:01:03]} Rc2+ {[%emt 0:00:24]} 69. Nc3 {[%emt 0:00:08]} Nc6 {[%emt 0:00:59]} 70. d4+ {[%emt 0:00:50]} Ke6 {[%emt 0:00:20]} 71. Rxf4 {[%emt 0:00:11] Weighted Error Value: White=0.36/Black=0.28 (precise)} 1-0

[Event "7th Porticcio Open 2022"]
[Site "Porticcio"]
[Date "2022.07.05"]
[Round "5.4"]
[White "Yankelevich, Lev"]
[Black "Mastrovasilis, Athanasios"]
[Result "1-0"]
[ECO "D30"]
[WhiteElo "2496"]
[BlackElo "2527"]
[Annotator "TA"]
[PlyCount "79"]
[EventDate "2022.07.02"]
[EventType "swiss"]
[EventCountry "FRA"]
[SourceTitle "playchess.com"]
[Source "ChessBase"]
[SourceQuality "1"]
[TimeControl "5400+30"]

{[%evp 9,79,25,29,23,25,16,36,37,61,52,72,60,68,70,140,137,137,148,220,225,225,220,211,218,270,256,290,255,255,259,259,251,255,254,261,247,279,267,286,282,377,291,301,284,306,296,353,319,414,425,425,416,395,381,464,460,482,479,518,528,522,532,600,597,562,514,743,678,635,626,707,554]} 1. d4 {[%emt 0:00:02]} d5 {[%emt 0:04:04]} 2. c4 {[%emt 0:00:05]} e6 {[%emt 0:00:09]} 3. Nf3 {[%emt 0:00:04]} a6 {[%emt 0:00:13]} 4. Bg5 {[%emt 0:00:26]} Be7 {[%emt 0:00:40]} 5. Bxe7 {[%emt 0:00:08]} Qxe7 {[%emt 0:00:21]} 6. Nbd2 {[%emt 0:00:43] D30: Queen's Gambit Declined: Systems without Nc3.} Nf6 {[%emt 0:00:41]} 7. g3 {[%emt 0:00:22]} Nc6 {[%emt 0:03:59]} 8. Bg2 {[%emt 0:02:33] White is slightly better.} O-O {[%emt 0:03:23]} 9. O-O {[%emt 0:00:07]} Rd8 {[%emt 0:00:14]} 10. Rc1 {[%emt 0:07:56]} dxc4 {[%emt 0:15:04]} 11. Rxc4 {[%emt 0:01:11]} e5 {[%emt 0:00:43] [#]} (11... a5 $14) 12. Rxc6 $1 $16 {[%emt 0:00:54][%mdl 512]} bxc6 {[%emt 0:00:49]} 13. Nxe5 {[%emt 0:00:05][%mdl 64] [#] Discovered Attack} Bd7 $146 {[%emt 0:07:48]} (13... Rxd4 $2 14. Nxc6 Qd6 15. Nxd4 $18) (13... Bb7 $16) ({Predecessor:} 13... Bb7 14. Bxc6 Rdb8 15. Qc2 Qe6 16. b3 Bxc6 17. Qxc6 Qd6 18. e3 Nd5 19. Rc1 a5 {1-0 (44) Grischuk,A (2777)-Vallejo Pons,F (2704) Moscow 2019}) 14. Bxc6 $18 {[%emt 0:02:06]} ({Worse is} 14. Nxc6 Bxc6 15. Bxc6 Rab8 $11) 14... Bh3 {[%emt 0:01:12][%cal Od8d4]} 15. Bxa8 {[%emt 0:00:07]} Rxa8 {[%emt 0:00:56]} 16. Re1 {[%emt 0:00:24]} Qb4 {[%emt 0:03:39]} 17. Nb3 {[%emt 0:19:34]} Re8 {[%emt 0:27:37]} 18. Qd2 {[%emt 0:05:38]} Qxd2 {[%emt 0:05:07]} 19. Nxd2 {[%emt 0:02:17]} c5 {[%emt 0:00:02]} 20. Nef3 {[%emt 0:00:23]} cxd4 {[%emt 0:00:10]} 21. Nxd4 {[%emt 0:00:04]} Rc8 {[%emt 0:00:52]} 22. f3 {[%emt 0:02:43]} h5 {[%emt 0:00:06]} 23. Kf2 {[%emt 0:00:09]} Nd5 {[%emt 0:00:31]} 24. N2b3 {[%emt 0:00:45]} Nb6 {[%emt 0:01:15]} 25. Rc1 {[%emt 0:00:35]} Na4 {[%emt 0:00:36]} 26. g4 {[%emt 0:05:18]} Rxc1 {[%emt 0:00:13]} 27. Nxc1 {[%emt 0:00:02] Threatens to win with Kg3.} Nxb2 {[%emt 0:02:07][%mdl 4096] Endgame KBN-KNN} 28. Kg3 {[%emt 0:00:13]} (28. gxh5 Bc8 29. Kg3 Na4 $18) 28... hxg4 {[%emt 0:00:06]} 29. fxg4 {[%emt 0:00:01]} Bf1 {[%emt 0:00:06]} 30. Nf3 {[%emt 0:01:37]} Nc4 {[%emt 0:03:09]} 31. h4 {[%emt 0:01:52]} g6 {[%emt 0:02:02]} 32. Ng1 {[%emt 0:03:24] White is clearly winning.} (32. Nh2 Nd2 33. Kf2 Bh3 $18) 32... Ne3 {[%emt 0:03:13]} 33. Kf3 {[%emt 0:06:07]} ({Not} 33. Kf2 Bxe2 34. g5 Nf5 35. Ngxe2 Nxh4 $18) 33... Nd1 {[%emt 0:03:18]} 34. Nb3 {[%emt 0:00:04]} Nc3 {[%emt 0:01:14]} 35. a3 {[%emt 0:00:02][%cal Ba2a3,Ba3a4][%mdl 32]} Nb5 {[%emt 0:07:29]} 36. a4 {[%emt 0:00:04]} Nc3 {[%emt 0:00:06]} 37. a5 {[%emt 0:00:02]} f5 {[%emt 0:00:15]} 38. Kf2 {[%emt 0:01:03]} fxg4 {[%emt 0:00:40]} 39. Kxf1 {[%emt 0:00:03]} Kf7 {[%emt 0:01:17]} 40. e3 {[%emt 0:00:32] Black did not feel at home in the position after the opening.  Weighted Error Value: White=0.08 (flawless) /Black=0.29 (precise)} 1-0

[Event "7th Porticcio Open 2022"]
[Site "Porticcio"]
[Date "2022.07.05"]
[Round "5.5"]
[White "Peng, Li Min"]
[Black "Rakotomaharo, Fy Antenaina"]
[Result "1/2-1/2"]
[ECO "C92"]
[WhiteElo "2516"]
[BlackElo "2490"]
[Annotator "TA"]
[PlyCount "29"]
[EventDate "2022.07.02"]
[EventType "swiss"]
[EventCountry "FRA"]
[SourceTitle "playchess.com"]
[Source "ChessBase"]
[SourceQuality "1"]
[TimeControl "5400+30"]

{[%evp 27,29,0,29,0]} 1. e4 {[%emt 0:07:41]} e5 {[%emt 0:00:12]} 2. Nf3 {[%emt 0:00:08]} Nc6 {[%emt 0:00:19]} 3. Bb5 {[%emt 0:00:20][%cal Bf1b5,Bb5a4,Ba4b3][%mdl 32]} a6 {[%emt 0:00:06]} 4. Ba4 {[%emt 0:00:08]} Nf6 {[%emt 0:00:08]} 5. O-O {[%emt 0:00:19]} Be7 {[%emt 0:00:16]} 6. Re1 {[%emt 0:00:23]} b5 {[%emt 0:00:16]} 7. Bb3 {[%emt 0:00:05]} d6 {[%emt 0:00:13]} 8. c3 {[%emt 0:00:14]} O-O {[%emt 0:00:08]} 9. h3 {[%emt 0:00:06]} Bb7 {[%emt 0:00:54]} 10. d4 {[%emt 0:00:13]} Re8 {[%emt 0:00:43]} 11. Ng5 {[%emt 0:00:09]} Rf8 {[%emt 0:00:36]} 12. Nf3 {[%emt 0:00:08]} Re8 {[%emt 0:00:37]} 13. Ng5 {[%emt 0:00:10]} Rf8 {[%emt 0:00:21]} 14. Nf3 {[%emt 0:00:15]} Re8 {[%emt 0:00:24] [#] 14...h6 is the hot move.} 15. Ng5 $146 {A balanced but interesting game. C92: Closed Ruy Lopez: 9...Be6, Karpov and Flohr-Zaitsev Variations.} ({Predecessor:} 15. Nbd2 Bf8 16. a3 h6 17. Bc2 Nb8 18. b3 Nbd7 19. Bb2 g6 20. a4 Bg7 21. Bd3 c6 22. Qc2 Rc8 23. Bf1 Qc7 24. axb5 axb5 25. b4 Nb6 26. dxe5 dxe5 27. c4 bxc4 28. Nxc4 {½-½ (52) Nguyen,T (2610)-Harikrishna,P (2701) Prague 2022}) 1/2-1/2

[Event "7th Porticcio Open 2022"]
[Site "Porticcio"]
[Date "2022.07.05"]
[Round "5.6"]
[White "Bhawoodien, Mohamed Ozayr"]
[Black "Trent, Lawrence"]
[Result "0-1"]
[ECO "B72"]
[WhiteElo "2182"]
[BlackElo "2404"]
[Annotator "TA"]
[PlyCount "64"]
[EventDate "2022.07.02"]
[EventType "swiss"]
[EventCountry "FRA"]
[SourceTitle "playchess.com"]
[Source "ChessBase"]
[SourceQuality "1"]
[TimeControl "5400+30"]

{[%evp 11,64,45,50,40,60,42,50,39,51,58,55,25,18,27,29,0,0,0,43,19,10,12,19,21,15,-150,-150,-150,-150,-243,-254,-379,-390,-345,-365,-324,-291,-288,-280,-279,-256,-233,-209,-420,-397,-485,-485,-594,-587,-584,-572,-1236,-1236,-1011,-965]} 1. e4 {[%emt 0:02:05]} c5 {[%emt 0:00:30]} 2. Nf3 {[%emt 0:00:11][%cal Bg1f3,Bf3d4,Bd4b3,Bb3a5][%mdl 32]} d6 {[%emt 0:00:04]} 3. d4 {[%emt 0:00:05]} cxd4 {[%emt 0:00:03]} 4. Nxd4 {[%emt 0:00:05]} Nf6 {[%emt 0:00:03]} 5. Nc3 {[%emt 0:00:05]} g6 {[%emt 0:00:03]} 6. Be3 {[%emt 0:00:18]} a6 {[%emt 0:00:04]} 7. f3 {[%emt 0:00:36] B72: Sicilian Dragon: 6 Be3, lines with h3+Bc4 and sidelines.} h5 {[%emt 0:00:15]} 8. Qd2 {[%emt 0:00:52]} e5 {[%emt 0:00:07]} 9. Nb3 {[%emt 0:01:44] White is slightly better.} Be6 {[%emt 0:00:03]} 10. Be2 {[%emt 0:03:05]} Nbd7 {[%emt 0:00:08] [#]} 11. Nd5 $146 {[%emt 0:06:49]} ({Predecessor:} 11. Rd1 Rc8 12. O-O h4 13. h3 Nh5 14. Nd5 Bxd5 15. Qxd5 Qc7 16. Rf2 Be7 17. Qd2 {½-½ (35) Tsygankov,E (2433)-Oliveira,D (2225) LSS email 2014}) 11... Bxd5 {[%emt 0:04:17]} 12. exd5 {[%emt 0:00:06]} Bg7 {[%emt 0:00:05]} 13. Na5 {[%emt 0:04:31]} Qc7 {[%emt 0:00:27]} 14. c4 {[%emt 0:04:08]} O-O {[%emt 0:01:28]} 15. Rc1 {[%emt 0:01:47]} e4 {[%emt 0:00:38]} 16. f4 {[%emt 0:03:16]} Nc5 $1 {[%emt 0:01:38]} 17. b4 {[%emt 0:10:01]} Ng4 $1 {[%emt 0:11:16][%cal Oc5d3] ...Nd3+! is the strong threat.} 18. Bxc5 {[%emt 0:15:58]} (18. O-O $1 $11 Nxe3 19. Qxe3) 18... dxc5 $17 {[%emt 0:01:28]} 19. Bxg4 {[%emt 0:00:57] aiming for d6.} cxb4 {[%emt 0:08:52][%mdl 64] [#] Deflection} 20. Qxb4 {[%emt 0:14:15]} (20. Bd1 $17 {was called for.} Qxa5 21. O-O) 20... Qxf4 $19 {[%emt 0:00:11]} (20... hxg4 21. d6 Qd8 22. c5 $16) 21. Qd2 {[%emt 0:08:01]} (21. Qa3 $142 hxg4 22. g3) 21... e3 {[%emt 0:02:46]} ({Inferior is} 21... Qxg4 22. Qe2 $19) 22. Qe2 {[%emt 0:00:21] Strongly threatening Bf3.} hxg4 {[%emt 0:00:12]} 23. g3 {[%emt 0:01:41]} Qc7 {[%emt 0:03:43]} 24. Nb3 {[%emt 0:00:12] [#]} a5 $1 {[%emt 0:00:44][%cal Ba6a5,Ba5a4][%mdl 32] And now ...a4 would win.} 25. O-O {[%emt 0:01:08]} a4 {[%emt 0:00:52]} 26. Na1 {[%emt 0:00:12]} Qc5 {[%emt 0:01:27]} 27. Rb1 $2 {[%emt 0:01:47]} (27. Nc2 {might work better.}) 27... Rac8 {[%emt 0:00:50]} 28. Rfc1 {[%emt 0:01:28]} ({Much weaker is} 28. Nc2 Qxc4 29. Qxc4 Rxc4) 28... b5 {[%emt 0:01:01] Black is clearly winning.} 29. Nc2 {[%emt 0:04:18]} Qxc4 {[%emt 0:00:21]} 30. Qxc4 Rxc4 31. Na3 {[%emt 0:02:08]} Rxc1+ {[%emt 0:00:06]} 32. Rxc1 {[%emt 0:00:04]} Bb2 {[%emt 0:00:02][%csl LRa3,LRc1] Weighted Error Value: White=0.57/Black=0.03 (flawless)} 0-1

[Event "7th Porticcio Open 2022"]
[Site "Porticcio"]
[Date "2022.07.05"]
[Round "5.7"]
[White "Suarez Uriel, Adrian"]
[Black "Humeau, Cyril"]
[Result "1-0"]
[ECO "C10"]
[WhiteElo "2386"]
[BlackElo "2270"]
[Annotator "TA"]
[PlyCount "145"]
[EventDate "2022.07.02"]
[EventType "swiss"]
[EventCountry "FRA"]
[SourceTitle "playchess.com"]
[Source "ChessBase"]
[SourceQuality "1"]
[TimeControl "5400+30"]

{[%evp 15,145,61,68,55,69,43,80,35,125,105,120,136,123,105,114,36,47,45,44,20,18,20,20,14,19,0,25,11,32,28,32,32,47,24,81,59,45,0,82,82,85,85,85,34,35,0,72,0,0,8,39,39,40,49,122,42,103,106,109,106,102,69,129,60,570,570,570,564,1460,1473,1486,1465,1437,1437,1385,1329,1054,942,1237,1162,6838,6530,11145,1849,5976,5089,29956,29958,29984,29985,29985,29986,29986,29963,29963,29964,29962,29965,29964,29960,29962,29961,29965,29967,29965,5077,29976,29977,29974,29972,29968,29973,29979,12579,29980,29981,29981,29982,29984,29979,29979,29976,29975,29975,29983,29981,29983,29980,29984,29985,29996,584]} 1. e4 {[%emt 0:00:03]} e6 {[%emt 0:02:41]} 2. d4 {[%emt 0:00:05]} d5 {[%emt 0:00:03]} 3. Nc3 {[%emt 0:00:03]} dxe4 {[%emt 0:00:04]} 4. Nxe4 {[%emt 0:00:04]} Nf6 {[%emt 0:00:05]} 5. Nxf6+ {[%emt 0:00:29]} Qxf6 {[%emt 0:00:05]} 6. Nf3 {[%emt 0:00:06]} h6 {[%emt 0:00:03]} 7. Bd3 {[%emt 0:01:27]} Nc6 {[%emt 0:01:24]} 8. O-O {[%emt 0:00:12]} Bd6 {[%emt 0:00:29] 8...Bd6 scores better than 8...Bd7.} (8... Nxd4 $2 9. Nxd4 Bd7 10. Be3 $18) 9. Re1 {[%emt 0:00:21] C10: French with 3 Nc3: Unusual Black 3rd moves and 3...dxe4.} O-O {[%emt 0:00:23]} (9... Nxd4 $2 10. Nxd4 Bd7 11. Nb5 $18) 10. Be4 {[%emt 0:01:22]} Bd7 {[%emt 0:05:18] [#]} 11. Ne5 $146 {[%emt 0:03:53] White is better.} ({Predecessor:} 11. c4 Rad8 12. c5 Bf4 13. Qb3 Rb8 14. Bxf4 Qxf4 15. Rad1 Rfd8 16. Ne5 Nxe5 17. dxe5 Bc6 18. g3 Qg4 19. f3 Qg5 20. Bxc6 bxc6 21. Qc3 {½-½ (21) Heppell,I (2132)-Spanton,T (1980) Guernsey 2011}) 11... Nxe5 {[%emt 0:06:03]} (11... Bxe5 $14 12. dxe5 Nxe5) 12. dxe5 $16 {[%emt 0:00:08]} Qxe5 {[%emt 0:00:04] [#]} 13. Bh7+ $1 {[%emt 0:00:05][%mdl 576] Discovered Attack} Kxh7 {[%emt 0:00:03]} 14. Rxe5 {[%emt 0:00:12]} Bxe5 {[%emt 0:00:03] This bishop pair is nice.} 15. Bf4 {[%emt 0:02:29]} ({Wrong is} 15. Qxd7 $2 Rfd8 16. Qd2 Rxd2 17. Bxd2 Bxb2 $19) (15. Qe2 $16 Bd6 16. Qe4+ f5 17. Qxb7) 15... Bxf4 $14 {[%emt 0:01:57]} 16. Qxd7 {[%emt 0:00:04]} Bd6 {[%emt 0:02:20]} 17. c4 {[%emt 0:01:56][%mdl 1024] White has compensation.} b6 {[%emt 0:01:50]} 18. g3 {[%emt 0:05:25]} Kg8 {[%emt 0:05:13]} 19. h4 {[%emt 0:01:57]} a5 {[%emt 0:01:27]} 20. Re1 {[%emt 0:01:42]} Rae8 {[%emt 0:10:58]} 21. Qc6 {[%emt 0:06:20]} f5 {[%emt 0:05:57]} 22. f4 {[%emt 0:04:57]} Re7 {[%emt 0:03:13]} 23. a3 {[%emt 0:01:38][%cal Ob2b4]} Rfe8 {[%emt 0:00:35]} 24. Kg2 {[%emt 0:00:16]} Kf8 {[%emt 0:01:20]} (24... g6 $11 {remains equal.}) 25. Qb5 $16 {[%emt 0:00:24]} e5 {[%emt 0:10:22]} 26. Kf3 {[%emt 0:08:52]} exf4 {[%emt 0:07:44]} (26... g6 $11) 27. Qxf5+ {[%emt 0:00:05]} Kg8 {[%emt 0:08:43]} 28. Rxe7 {[%emt 0:00:13] Chess con chili.} Rxe7 {[%emt 0:00:04][%mdl 4096] Endgame KQ-KRB} 29. Qd5+ {[%emt 0:00:03]} (29. gxf4 $16 Rf7 30. Qe6) 29... Kf8 $1 $14 {[%emt 0:00:37]} 30. Qf5+ {[%emt 0:04:33]} Kg8 $1 {[%emt 0:00:13]} 31. g4 {[%emt 0:04:34]} (31. gxf4 $16 Rf7 32. Qe6) 31... Re3+ $11 {[%emt 0:03:14]} 32. Kf2 {[%emt 0:00:05][%cal Ob2b4]} Re5 {[%emt 0:00:48]} (32... Bc5 $5 {[%cal Re3e5]} 33. Qd5+ Kh8 $11) 33. Qc8+ {[%emt 0:00:22]} Kf7 {[%emt 0:00:12]} 34. Qd7+ {[%emt 0:00:01]} Kf6 {[%emt 0:01:31]} (34... Kg6 $14) 35. Qd8+ {[%emt 0:02:29]} (35. b4 $1 $16) 35... Kf7 {[%emt 0:00:05]} (35... Kg6 $14) 36. b4 $1 $16 {[%emt 0:00:19]} axb4 {[%emt 0:00:05]} 37. axb4 {[%emt 0:00:02]} Kg6 {[%emt 0:04:55]} 38. Qd7 {[%emt 0:00:51][%cal Oc4c5] Black must now prevent c5!} Kf6 {[%emt 0:00:24]} ({Black should play} 38... Kh7 $1 $14) 39. Kf1 {[%emt 0:08:42]} ({White should try} 39. Kg2 $16) 39... Kg6 $2 {[%emt 0:00:58][%mdl 8192] [#] This costs Black the game.} (39... Bxb4 $14 40. Qxc7 Bc5) 40. c5 $1 $18 {[%emt 0:00:20]} bxc5 {[#]} 41. b5 {[%cal Ob5b6] Intending b6! and mate.} Kf6 {[%emt 0:04:43]} 42. b6 {[%emt 0:00:11][%mdl 64] Threatening mate with b7. Deflection, Decoy} cxb6 {[%emt 0:00:19]} 43. Qxd6+ {[%emt 0:00:01] KQ-KR} Re6 {[%emt 0:00:08]} 44. Qf8+ {[%emt 0:00:17]} Ke5 {[%emt 0:00:11]} 45. Qxg7+ {[%emt 0:00:02]} Kd5 {[%emt 0:03:06]} 46. Qf7 {[%emt 0:00:12]} c4 {[%emt 0:00:30]} 47. Qxf4 {[%emt 0:00:12] Strongly threatening g5.} Re4 {[%emt 0:05:39]} 48. Qxh6 {[%emt 0:02:40]} c3 {[%emt 0:00:17]} 49. Qxb6 {[%emt 0:00:18]} c2 {[%emt 0:02:09]} 50. Qb2 {[%emt 0:00:24]} Rxg4 {[%emt 0:00:31]} 51. Qxc2 {[%emt 0:01:26]} Rxh4 {[%emt 0:00:05]} 52. Qf5+ {[%emt 0:00:01]} Kc4 {[%emt 0:00:19]} 53. Qe6+ {[%emt 0:00:22]} Kb5 {[%emt 0:01:00]} 54. Qe5+ {[%emt 0:00:14]} Kc4 {[%emt 0:00:57]} 55. Ke2 {[%emt 0:01:22]} Rd4 {[%emt 0:00:05]} 56. Ke3 {[%emt 0:00:04]} Rd5 {[%emt 0:00:11]} 57. Qe6 {[%emt 0:00:21]} Kc5 {[%emt 0:00:07]} 58. Ke4 {[%emt 0:00:03]} Rd6 {[%emt 0:01:32]} 59. Qe7 {[%emt 0:00:01]} Kc6 {[%emt 0:00:04]} 60. Ke5 {[%emt 0:00:05]} (60. Qf7 $142 Kc5 61. Qc7+ Rc6 62. Qa5+ Kd6 63. Qa3+ Ke6 64. Qa4 Rc7 65. Qb3+ Kd6 66. Qd5+ Ke7 67. Qe5+ Kd8 68. Qh8+ Ke7 69. Qe5+ Kd8 70. Qa5) 60... Rd7 {[%emt 0:00:38]} 61. Qe8 {[%emt 0:00:04]} Kc7 {[%emt 0:00:04]} 62. Ke6 {[%emt 0:00:05]} Rd6+ {[%emt 0:01:11]} 63. Ke7 {[%emt 0:00:02]} Rc6 {[%emt 0:00:09]} 64. Qa8 {[%emt 0:01:19]} (64. Qd8+ $142 Kb7 65. Qa5 Rh6 66. Qd5+ Kc7 67. Qe5+ Kc8 68. Qf5+ Kb7 69. Kd7) 64... Rb6 {[%emt 0:00:28]} 65. Qd5 {[%emt 0:01:55] White mates.} Rc6 {[%emt 0:00:17]} 66. Qb5 {[%emt 0:00:40]} Rb6 {[%emt 0:00:25]} 67. Qc5+ {[%emt 0:00:02]} Kb7 {[%emt 0:00:49]} 68. Kd7 {[%emt 0:00:05]} Ka6 {[%emt 0:00:18]} 69. Qd5 Rb5 {[%emt 0:00:32]} 70. Qa2+ {[%emt 0:01:41]} Kb7 {[%emt 0:00:29]} 71. Qa4 {[%emt 0:01:07]} Kb6 {[%emt 0:00:52]} 72. Kd6 {[%emt 0:00:06]} Ra5 {[%emt 0:00:31]} 73. Qc6+ {[%emt 0:00:09] Weighted Error Value: White=0.18 (very precise) /Black=0.53} 1-0